Cogmind - Beta 15 @@@ ROGUE MODE // 2025.08.23 @ 21:18:39 Player: NQH Result: Destroyed by G-34 Mercenary with Small Laser Performance ------------- Evolutions (1) 500 Regions Visited (2) 400 Robots Destroyed (12) 60 Value Destroyed (361) 361 Prototype IDs (1) 20 Alien Tech Used (0) 0 Bonus (0) 0 TOTAL SCORE: 1341 Bonus ------- None Cogmind --------- Core Integrity 0/400 Matter 165/300 Energy 100/100 System Corruption 0% Temperature Cool (6) Movement Core (50) Location -9/Materials Parts ------- > --- POWER (1) -------- (None) > --- PROPULSION (3) --- (None) > --- UTILITY (3) ------ Signal Interpreter > --- WEAPON (2) ------- Light Assault Rifle > --- INVENTORY (5) ---- Small Storage Unit Structural Scanner Peak State ------------ > --- POWER ------------ Light Nuclear Core > --- PROPULSION ------- Hover Unit > --- UTILITY ---------- Small Storage Unit Structural Scanner > --- WEAPON ----------- Assault Rifle Light Assault Rifle > --- INVENTORY -------- Light Ion Engine [Rating: 8] Favorites ----------- Power Light Ion Engine Engine Light Ion Engine Power Core Light Nuclear Core Propulsion Flight Unit Treads Light Treads Leg Aluminum Leg Hover Unit Hover Unit Flight Unit Flight Unit Utility Signal Interpreter Device Structural Scanner Storage Small Storage Unit Processor Signal Interpreter Weapon Assault Rifle Ballistic Gun Assault Rifle Build | -11 -10 -9 ------- Run | Yrd Mat Mat Slots Evolved 2 | . . 2 Power . | . . . Propulsion 1 | . . 1 Utility 1 | . . 1 Weapon . | . . . Parts Attached 17 | 6 7 4 Power 3 | 1 1 1 Engine 2 | 1 . 1 Core 1 | . 1 . Reactor . | . . . Propulsion 6 | 2 3 1 Treads 1 | . . 1 Leg 2 | 2 . . Wheel . | . . . Hover 2 | . 2 . Flight 1 | . 1 . Utility 3 | 1 2 . Device 1 | . 1 . Storage 1 | 1 . . Processor 1 | . 1 . Hackware . | . . . Protection . | . . . Artifact . | . . . Weapon 5 | 2 1 2 Energy Gun . | . . . Energy Cannon . | . . . Ballistic Gun 5 | 2 1 2 Ballistic Cannon . | . . . Launcher . | . . . Special Weapon . | . . . Impact Weapon . | . . . Slashing Weapon . | . . . Piercing Weapon . | . . . Special Melee Weapon . | . . . Unidentified Prototypes 1 | . . 1 Parts Lost 10 | . 1 9 Power 3 | . . 3 Propulsion 3 | . 1 2 Utility . | . . . Weapon 4 | . . 4 Highest Loss Streak 5 | . 1 5 To Critical Strikes . | . . . Average Backups 1 | . 1 2 Power . | . . . Propulsion . | . . . Utility 1 | . . 2 Weapon . | . . . Tool/Special . | . . . Unused Backups 1 | . . 1 Power 1 | . . 1 Propulsion . | . . . Utility . | . . . Weapon . | . . . Tool/Special . | . . . Average Slot Usage (%) 55 | . 64 45 Engine 4 | . 4 4 Core 3 | . 4 1 Treads 1 | . . 3 Leg 1 | . 2 . Hover 3 | . 5 . Flight 6 | . 7 4 Device 2 | . 4 . Storage 4 | . 8 . Processor 8 | . 6 11 Ballistic Gun 19 | . 18 19 Peak Build Rating 8 | 6 8 7 Average Rating 5 | 4 5 5 On Entrance 3 | . 6 4 Naked Turns . | . . . Heaviest Build 14 | 11 14 11 Greatest Support 20 | 20 20 20 Greatest Overweight (x) 4 | . 4 3 Average Overweight (x) . | . . . Largest Inventory Capacity 8 | 8 8 5 Average Capacity 6 | 6 6 5 Most Carried 5 | . 5 4 Average Carried 2 | . 2 2 Final Capacity 8 | 8 5 5 Final Carried 4 | . 4 2 Class Distribution -------------------- 100% | Mutant Dominant Class ---------------- Mutant | -10/Materials Mutant | -9/Materials Resources | -11 -10 -9 ----------- Run | Yrd Mat Mat Matter Collected 471 | 219 78 174 Remotely . | . . . Salvage Created 455 | . 227 228 Parts 24 | . 11 13 Haulers Intercepted . | . . . Recyclers Shooed . | . . . Parts Field Recycled . | . . . Retrieved Matter . | . . . Parts Self-Destructed . | . . . Prevented . | . . . Kills | -11 -10 -9 ------- Run | Yrd Mat Mat Combat Hostiles Destroyed 10 | . 5 5 Guns 10 | . 5 5 Classes Destroyed 4 | . 1 3 Watcher 2 | . . 2 Swarmer 2 | . . 2 Grunt 7 | . 5 2 Sentry 1 | . . 1 Best Kill Streak 3 | . 3 2 Combat Bots Only 3 | . 3 2 Max Kills in Single Turn 1 | . 1 1 Gunslinging . | . . . Exploded . | . . . Melee . | . . . Uniques/NPCs Destroyed . | . . . Combat | -11 -10 -9 -------- Run | Yrd Mat Mat Hostile Shots Fired 133 | . 28 105 Missed 30 | . 7 23 Hits 103 | . 21 82 Projectile 103 | . 21 82 Critical Strikes 2 | . 1 1 Damage Taken 1186 | . 254 932 Core 428 | . 22 406 Absorbed by Shields . | . . . Core Remaining (%) 95 | 100 91 . Volleys Fired 49 | . 13 36 Largest 2 | . 2 2 Hottest 43 | . 40 43 Shots Fired 88 | . 26 62 Gun 88 | . 26 62 Cannon . | . . . Launcher . | . . . Special . | . . . Kinetic 88 | . 26 62 Thermal . | . . . Explosive . | . . . Electromagnetic . | . . . Robot Hit Streak 8 | . 8 8 Robot Miss Streak 6 | . 1 6 Penetration Max . | . . . Secondary Targets 2 | . 1 1 Max Gunslinging Chain 1 | . 1 1 Shots Hit Robots 55 | . 21 34 Core Hits 27 | . 12 15 Critical Kills . | . . . Critical Parts Destroyed . | . . . Critical Strikes . | . . . Melee Attacks . | . . . Impact . | . . . Slashing . | . . . Piercing . | . . . Sneak Attacks . | . . . Combat Hostiles . | . . . Follow-up Attacks . | . . . Damage Inflicted 629 | . 210 419 Guns 618 | . 210 408 Cannons . | . . . Explosions . | . . . Melee . | . . . Ramming 11 | . . 11 Kinetic 618 | . 210 408 Thermal . | . . . Explosive . | . . . Electromagnetic . | . . . Impact . | . . . Slashing . | . . . Piercing . | . . . Highest Corruption . | . . . Average Corruption . | . . . Corruption Purged . | . . . Corruption Blocked . | . . . Overload Shots . | . . . Overflow Damage . | . . . Projectiles . | . . . Explosions . | . . . Melee . | . . . Knockbacks . | . . . Impact . | . . . Kinetic . | . . . Secondary . | . . . Self-Inflicted Damage 5 | . . 5 Shots . | . . . Rammed 3 | . . 3 Targets Rammed 3 | . . 3 Kicked . | . . . Crushed . | . . . Highest Temperature 44 | . 44 26 Average Temperature 17 | . 24 7 Received Heat Transfer 531 | . 156 375 Siege Activations . | . . . Martial Activations . | . . . Shielding Activations . | . . . Robots Disrupted . | . . . Combat Hostiles . | . . . Robots Corrupted . | . . . Combat Hostiles . | . . . Parts Fried . | . . . Impact Corruptions . | . . . Robots Melted . | . . . Combat Hostiles . | . . . Parts Melted . | . . . Heat Transferred . | . . . Parts Sabotaged . | . . . Parts Stolen . | . . . Parts Stripped . | . . . Power Chain Reactions . | . . . Alert | -11 -10 -9 ------- Run | Yrd Mat Mat Maximum Alert Level . | . . . Low Security (%) 100 | 100 100 100 Level 1 . | . . . Level 2 . | . . . Level 3 . | . . . Level 4 . | . . . Level 5 . | . . . High Security . | . . . Max Security . | . . . Peak Influence 60 | . 60 40 Initial 16 | . . 16 Average 16 | . 21 16 Influence Increases 279 | . 120 159 Destroy 0b10 Robot/C 200 | . 100 100 Destroy 0b10 Robot/NC 10 | . . 10 Destroy Leader 54 | . 20 34 Lose Combat Pursuer 15 | . . 15 Influence Decreases 259 | . 80 179 Entered New Map 24 | . . 24 Time Decay 170 | . 80 90 Lost Part 65 | . . 65 Squads Dispatched 2 | . 1 1 Investigation 1 | . 1 . Extermination . | . . . Reinforcement 1 | . . 1 Assault . | . . . Garrison . | . . . Intercept . | . . . Searches Triggered . | . . . Construction Impeded . | . . . Haulers Reinforced . | . . . Active Scanning Responses . | . . . Cargo Convoy Interrupts . | . . . Stealth | -11 -10 -9 --------- Run | Yrd Mat Mat Distress Signals 1 | . 1 . Communications Jammed . | . . . Distress Signals . | . . . Times Spotted 20 | . 7 13 Peak Tracking Total 7 | . 5 7 Tactical Retreats 1 | . . 1 Traps | -11 -10 -9 ------- Run | Yrd Mat Mat Traps Triggered 1 | . 1 . Indirectly . | . . . Trap Hack Attempts . | . . . Triggered . | . . . Disarmed . | . . . Reprogrammed . | . . . Reused . | . . . Traps Extracted . | . . . Installed . | . . . Triggered . | . . . Machines | -11 -10 -9 ---------- Run | Yrd Mat Mat Machines Disabled . | . . . Max in Single Turn . | . . . Machines Repaired . | . . . Machines Dismantled . | . . . Machines Sabotaged . | . . . Overloaded Fab Kills . | . . . Hacking | -11 -10 -9 --------- Run | Yrd Mat Mat Machines Accessed . | . . . Terminals . | . . . Fabricators . | . . . Repair Stations . | . . . Recycling Units . | . . . Scanalyzers . | . . . Garrison Access . | . . . Total Hacks . | . . . Successful . | . . . Failed . | . . . Catastrophic . | . . . Database Lockouts . | . . . Manual . | . . . Terminals . | . . . Fabricators . | . . . Repair Stations . | . . . Recycling Units . | . . . Scanalyzers . | . . . Garrison Access . | . . . Terminal Hacks . | . . . Fabricator Hacks . | . . . Repair Station Hacks . | . . . Recycling Unit Hacks . | . . . Scanalyzer . | . . . Garrison Access Hacks . | . . . Unauthorized Hacks . | . . . Terminals . | . . . Fabricators . | . . . Repair Stations . | . . . Recycling Units . | . . . Scanalyzers . | . . . Garrison Access . | . . . Data Cores Recovered . | . . . Used . | . . . Hacking Detections . | . . . Full Trace Events . | . . . Feedback Events . | . . . Feedback Blocked . | . . . Robot Schematics Acquired . | . . . Robots Built . | . . . Authchips . | . . . Time . | . . . Total Robot Build Rating . | . . . Part Schematics Acquired . | . . . Parts Built . | . . . Authchips . | . . . Time . | . . . Total Part Build Rating . | . . . Parts Repaired . | . . . Time . | . . . Parts Recycled . | . . . Recycled Matter . | . . . Retrieved Matter . | . . . Retrieved Components . | . . . Parts Scanalyzed . | . . . Part Schematics Acquired . | . . . Parts Damaged . | . . . Bothacking | -11 -10 -9 ------------ Run | Yrd Mat Mat Used RIF Installer . | . . . Robots Hacked . | . . . Non-combat . | . . . Combat . | . . . Robot Hacks Applied . | . . . Relay Couplers Released . | . . . Fabnet Peak Effective % . | . . . Robots Rewired . | . . . Allies Hacked . | . . . Hacks Repelled . | . . . Allies | -11 -10 -9 -------- Run | Yrd Mat Mat Total Allies . | . . . Largest Group . | . . . Highest-Rated Group . | . . . Highest-Rated Ally . | . . . Total Orders . | . . . Ally Attacks . | . . . Total Damage . | . . . Kills . | . . . Allies Corrupted . | . . . Allies Melted . | . . . Intel | -11 -10 -9 ------- Run | Yrd Mat Mat Active Infowar (turns) 96 | . 96 . Structural 96 | . 96 . Robot Analysis Total . | . . . Derelict Logs Recovered . | . . . Drone Launches . | . . . Drone Recoveries . | . . . Exploration | -11 -10 -9 ------------- Run | Yrd Mat Mat Turns Passed 509 | 62 253 194 Spaces Moved 376 | 48 235 93 Core 18 | 6 2 10 Treads 30 | . . 30 Legs 55 | 42 13 . Wheels . | . . . Hover 73 | . 73 . Flight 200 | . 147 53 Fastest Speed 40 | 50 40 40 Average Speed 78 | 111 67 88 Slowest Speed 280 | 120 280 200 Overloaded Moves . | . . . Propulsion Burnouts . | . . . Robots Hopped 1 | . 1 . Potential Cave-ins . | . . . Cave-ins Triggered . | . . . Exploration Rate (%) 20 | 4 42 15 Regions Visited 2 Branch Regions . Pre-discovered Areas . | . . . Known Exits Taken 1 | . 1 . Unknown Exits Taken 1 | 1 . . Scrap Searched . | . . . Spaces Dug . | . . . Terrain Destroyed . | . . . Melee . | . . . Projectile . | . . . AOE . | . . . Terrain Rammed . | . . . Walls Destroyed . | . . . Machines Disabled . | . . . Actions | -11 -10 -9 --------- Run | Yrd Mat Mat Total 505 | 53 309 143 Wait 34 | . 34 . Move 372 | 47 232 93 Hop 1 | . 1 . Pick Up 2 | . 1 1 Fast Attach 16 | 6 5 5 Attach 9 | . 6 3 Detach 13 | . 12 1 Swap 1 | . 1 . Drop 5 | . 4 1 Fire 49 | . 13 36 Melee . | . . . Ram 3 | . . 3 Kick . | . . . Crush . | . . . Escape Stasis . | . . . Rewire . | . . . Trap . | . . . Miscellaneous . | . . . Route ------- -11/Scrapyard -10/Materials (discovered 2 exits: *Mat / *Min) -9/Materials History --------- Turn | Location | Event 2 | -11/Scrapyard | Met Revision 17 3 | -11/Scrapyard | Discovered new exit (range 15) 63 | -11/Scrapyard | Entered Materials 140 | -10/Materials | Discovered new exit (range 16) 198 | -10/Materials | Identified exit to Mines 310 | -10/Materials | Discovered new exit (range 15) 315 | -10/Materials | Identified exit to Materials 316 | -10/Materials | Entered another Materials area 316 | -9/Materials | Evolved 2 slots: Propulsion x1, Utility x1 323 | -9/Materials | Build established: Mutant 414 | -9/Materials | Core integrity fell below 50% 428 | -9/Materials | Lost 4 parts (1p1n2w) 503 | -9/Materials | Core integrity fell below 20% 510 | -9/Materials | Destroyed by G-34 Mercenary with Small Laser Last Messages --------------- 00425_ Acquired 48 matter. 00429_ Acquired Lgt. Treads. 00438_ Acquired 56 matter. 00441_ Acquired Lgt. Nuclear Core. 00446_ Dropped Lgt. Nuclear Core. 00458_ Acquired Prototype Engine. 00458_ Identified Cld. Ion Engine. 00458_ Faulty integration triggers meltdown. 00458_ Lgt. Treads damaged (-30). 00484_ Lgt. Assault Rifle destroyed. 00485_ O-16 Technician: "IFF HANDSHAKE FAILED. SECURING TERMINAL." 00493_ Lgt. Treads destroyed. 00494_ S-10 Pest destroyed. 00496_ Slammed into S-10 Pest. 00496_ Hvy. Assault Rifle destroyed. 00499_ Acquired Lgt. Assault Rifle. 00500_ Imp. Ion Engine destroyed. 00504_ S-10 Pest destroyed. 00508_ Slammed into S-10 Pest. Map ----- +----------------------------------------------------+ | | | | | | | | | | | ?????????????????##########??????????????????????? | | ????????????????# #??????????????????????? | | ????????????????#"S #??????????????????????? | | ????????????????#""" ???????????????????????? | | ????????????????# "" """ #??????????????????????? | | ????????????????# """ #??????????????????????? | | ????????????????# """ #??????????????????????? | | ????????????????# #??????????????????????? | | ??????????###+### #??????????????????????? | | ??????????# ##+########??????????????????????? | | ####???####! #????????????????????????? | | #???# * * #????????????????????????? | | #???#=## [ #????????????????????????? | | #???#%## = ##### #????????????????????????? | | #???# ########???# #????????????????????????? | | #???# #??????????# #????????????????????????? | | #???# #??????????# #????????????????????????? | | ##??# #??????????+ #????????????????????????? | | #??# #??????????# #????????????????????????? | | #??# #??????????# ####+####+###????????????? | | " #??# #??????????# %[m@ t ????????? | | #??# #########??# s u ????????? | | #??# g s ????????? | | ########+#############/##########+# ?????????? | | = #?????????? ??????????????? ?????????? | | #????????? ?????????????????????????? | | #????????# ?????????????????????????? | | #????????# !! ?????????????????????????? | | #????????# !! ?????????????????????????? | | #######+##????????# != ?????????????????????????? | | #???????# ?????????????????????????? | | +???????# ?????????????????????????? | | #???????# ?????????????????????????? | | ###########???????#####+?????????????????????????? | | ?????????????????????????????????????????????????? | | ?????????????????????????????????????????????????? | | ?????????????????????????????????????????????????? | | ?????????????????????????????????????????????????? | | ?????????????????????????????????????????????????? | | ?????????????????????????????????????????????????? | | ?????????????????????????????????????????????????? | | ?????????????????????????????????????????????????? | | ?????????????????????????????????????????????????? | | ?????????????????????????????????????????????????? | | ?????????????????????????????????????????????????? | +----------------------------------------------------+ Best States ------------- Heat Dissipation 28 Energy Generation 14 Energy Capacity 265 Matter Stores 259 Matter Capacity 300 Sight Range 16 Terrain Scan Density 10 Evasion (%) 62 Recoil Reduction 1 Item Schematics ----------------- None Robot Schematics ------------------ None Fabricated ------------ Nothing Repaired ---------- Nothing Alien Tech Used ----------------- None Achievements -------------- None Challenges ------------ None Game ------ Seed ReactiveMobileDerivative Manual? 0 Play Time 00:05:29 Cumulative 17.7 hours Start 2025.08.23 @ 21:14:06 End 2025.08.23 @ 21:18:39 Sessions 1 Manual Loads 0 Difficulty Rogue Special Mode None Game No. 55 Rogue 55 Adventurer 0 Explorer 0 Win Type - Total 0 Types 0/0/0/0/0/0/0/0/0/0 Lore% 10 Gallery% 23 Achievement% 23 Wizard Run 0 Options --------- Layout 1 ASCII 0 Keyboard 1 Movement Vi Keybinds 0 Fullscreen 1 Font 16/SmallcapsGlow Map View 55x38 Zoom Use 0% Tactical HUD 1 Map Filters NONE Filters NONE Steam 1 RUN: 1126e569-c201-44b6-8a0a-48a1cbf8491b